bitfinex/quotes_SOLUSD_20251212
["timestamp","ask_amount","ask_price","bid_price","bid_amount"]
[1765555749671,82.50160327,133.31,133.26,19.73702164]
[1765555749872,8.22,133.3,133.26,7.50396789]
[1765555750063,8.22,133.3,133.26,20.44702164]
[1765555750268,9.48994492,133.29,133.24,7.70492727]
[1765555750466,12.23305375,133.28,133.24,0.2]
[1765555750871,83.80994492,133.27,133.24,0.2]
[1765555751091,8.22,133.26,133.24,0.2]
[1765555751674,15.72419637,133.26,133.24,0.2]
[1765555751868,16.40419637,133.26,133.24,0.2]
[1765555752181,8.22,133.26,133.24,0.2]
[1765555753000,75.0,133.29,133.25,12.23305375]
[1765555753304,75.68,133.32,133.28,12.23305375]
[1765555753305,75.0,133.32,133.28,12.23305375]
[1765555753799,75.0,133.32,133.28,20.4459031]
[1765555754098,83.18097466,133.32,133.27,7.50345574]
[1765555754481,75.0,133.32,133.28,19.73553572]
[1765555754678,75.0,133.32,133.28,39.20303872]
[1765555755384,75.0,133.32,133.28,8.21248197]
[1765555755581,75.0,133.32,133.24,0.2]
[1765555755582,8.22,133.33,133.3,7.50187546]
[1765555755981,8.22,133.33,133.3,8.21187546]
[1765555756206,3.91853333,133.35,133.32,12.23305375]
[1765555756406,3.91853333,133.35,133.31,0.99432314]
[1765555756604,3.91853333,133.35,133.31,0.71]
[1765555756805,16.83158708,133.35,133.3,7.50187546]
[1765555757013,16.15158708,133.35,133.3,8.21187546]
[1765555757184,8.22,133.34,133.3,8.21187546]
[1765555758020,8.22,133.34,133.31,0.7]
[1765555758198,15.71976281,133.34,133.27,26.95751016]
[1765555758402,8.22,133.34,133.3,12.23305375]
[1765555758604,8.22,133.34,133.3,7.50183051]
[1765555758806,8.22,133.34,133.31,12.93305375]
[1765555758996,8.22,133.34,133.31,0.7]
[1765555759784,8.22,133.34,133.31,8.20108566]
[1765555760484,8.22,133.34,133.32,0.71]
[1765555760797,75.0,133.43,133.34,0.28432314]
[1765555760982,95.37972282,133.43,133.34,0.28432314]
[1765555761306,8.80994492,133.42,133.36,12.23512411]
[1765555761509,83.14459871,133.43,133.37,12.23512411]
[1765555761823,95.54168991,133.43,133.38,7.49737591]
[1765555762032,87.23512411,133.4,133.35,7.49900977]
[1765555762206,8.22,133.39,133.35,7.49900977]
[1765555762404,8.22,133.39,133.36,7.498185]
[1765555762727,8.22,133.42,133.37,7.49790906]
[1765555762929,8.22,133.42,133.37,8.20790906]
[1765555763114,8.22,133.42,133.38,12.94512411]
[1765555763432,8.22,133.42,133.39,12.23512411]
[1765555763610,8.22,133.42,133.39,0.71]
[1765555763925,8.22,133.42,133.4,8.20584029]
[1765555764130,8.22,133.42,133.4,20.4409644]
[1765555764329,8.22,133.42,133.4,8.20584029]
[1765555764513,75.0,133.5,133.41,13.22944725]
[1765555764831,83.22,133.52,133.47,12.23512411]
[1765555765004,75.0,133.5,133.42,0.71]
[1765555765204,75.0,133.48,133.42,0.71]
[1765555765424,8.22,133.47,133.42,0.71]
[1765555765628,8.22,133.47,133.42,12.94512411]
[1765555765800,8.22,133.47,133.44,12.23512411]
[1765555766207,8.22,133.47,133.45,12.94512411]
[1765555766431,8.22,133.5,133.46,12.23512411]
[1765555766733,82.48856307,133.54,133.49,12.23512411]
[1765555766926,8.22,133.53,133.47,0.71]
[1765555767110,8.22,133.53,133.5,12.23512411]
[1765555767310,8.22,133.53,133.47,0.71]
[1765555767527,8.22,133.53,133.48,12.23512411]
[1765555767706,7.49007564,133.51,133.45,19.72856734]
[1765555767908,7.49007564,133.51,133.46,12.23512411]
[1765555768111,19.72519975,133.51,133.45,7.49344323]
[1765555768431,75.0,133.5,133.46,12.23512411]
[1765555768613,8.22,133.49,133.45,0.71]
[1765555768812,8.22,133.49,133.44,7.49383044]
[1765555769014,21.10512411,133.49,133.43,12.23512411]
[1765555769227,21.10512411,133.49,133.42,12.23512411]
[1765555769426,8.87,133.49,133.44,7.49398258]
[1765555769924,8.22,133.49,133.45,0.71]
[1765555770229,8.22,133.49,133.39,45.96804487]
[1765555770230,96.69506903,133.48,133.42,0.71]
[1765555770405,96.69506903,133.48,133.39,8.2]
[1765555770406,75.0,133.46,133.4,7.49609916]
[1765555770607,8.22,133.45,133.42,7.49506036]
[1765555770814,8.22,133.45,133.43,19.72945257]
[1765555771007,8.22,133.48,133.44,12.23512411]
[1765555771226,8.22,133.48,133.45,12.94512411]
[1765555771542,8.22,133.51,133.47,12.23512411]
[1765555771717,94.36970049,133.55,133.5,12.23512411]
[1765555771920,0.99999999,133.6,133.52,7.5054033]
[1765555771921,8.22,133.54,133.52,7.5054033]
[1765555772125,75.65,133.6,133.5,7.49055428]
[1765555772126,82.48450966,133.61,133.53,7.5054033]
[1765555772330,75.0,133.59,133.53,7.5054033]
[1765555772639,7.5054033,133.58,133.51,0.71]
[1765555772837,82.5054033,133.57,133.51,7.5054033]
[1765555773343,82.5054033,133.57,133.5,15.70595758]
[1765555773642,82.5054033,133.57,133.51,7.5054033]
[1765555773817,82.4872511,133.57,133.52,7.48951467]
[1765555774228,101.93493361,133.59,133.55,7.5054033]
[1765555774229,8.22,133.59,133.55,7.5054033]
[1765555774456,8.22,133.59,133.56,0.71]
[1765555774738,8.22,133.59,133.53,8.2154033]
[1765555774739,15.70585353,133.59,133.53,8.2154033]
[1765555774921,90.70585353,133.59,133.53,8.2154033]
[1765555775237,98.21125683,133.59,133.53,8.2154033]
[1765555775748,98.21125683,133.59,133.5,8.18]
[1765555775749,88.0470912,133.57,133.51,7.4898984]
[1765555775952,75.0,133.55,133.5,15.7058547]
[1765555776253,75.0,133.55,133.5,8.2004514]
[1765555776561,83.22,133.55,133.5,8.2004514]
[1765555776949,83.22,133.55,133.47,26.23569863]
[1765555776950,0.65,133.54,133.47,26.23569863]
[1765555777167,8.1554033,133.54,133.48,7.49165365]
[1765555777537,0.65,133.54,133.49,7.49101984]
[1765555777861,8.22,133.55,133.52,7.48951467]
[1765555778069,8.22,133.55,133.52,8.19951467]
[1765555778244,15.70787581,133.55,133.5,7.5054033]
[1765555778446,15.70787581,133.55,133.5,8.20054565]
[1765555778747,8.22,133.55,133.52,7.48951467]
[1765555779083,24.49623541,133.58,133.53,0.71]
[1765555779777,82.48575799,133.59,133.54,7.5054033]
[1765555780066,82.48575799,133.59,133.54,7.48839299]
[1765555780267,75.0,133.59,133.55,0.71]
[1765555780639,8.2,133.6,133.56,7.5054033]
[1765555781039,8.2,133.6,133.56,8.2154033]
[1765555781459,0.2,133.63,133.59,7.5054033]
[1765555781663,0.2,133.63,133.57,0.71]
[1765555781866,0.2,133.63,133.62,7.48390959]
[1765555782067,0.2,133.63,133.62,8.19390959]
[1765555782272,0.2,133.63,133.62,15.69931289]
[1765555784470,0.2,133.63,133.62,8.19390959]
[1765555784680,0.2,133.63,133.62,15.69931289]
[1765555784890,0.2,133.63,133.62,15.98363603]
[1765555785051,0.2,133.63,133.62,8.47823273]
[1765555785246,8.2,133.68,133.63,0.28432314]
[1765555785470,75.0,133.71,133.66,7.5054033]
[1765555785681,0.1,133.72,133.67,7.5054033]
[1765555785978,0.1,133.72,133.63,0.99432314]
[1765555785979,0.1,133.72,133.7,14.98483486]
[1765555786180,0.2,133.76,133.71,7.5054033]
[1765555786485,0.2,133.76,133.75,7.5054033]
[1765555786648,0.2,133.76,133.75,0.71]
[1765555786851,0.2,133.76,133.72,7.5054033]
[1765555787069,0.2,133.76,133.71,0.71]
[1765555787369,90.83156783,133.76,133.7,7.47943156]
[1765555787576,90.83156783,133.76,133.69,7.5054033]
[1765555787577,8.80994492,133.75,133.69,7.5054033]
[1765555787882,8.80994492,133.75,133.68,8.19053346]
[1765555787883,8.80994492,133.73,133.68,8.19053346]
[1765555788102,75.0,133.74,133.69,14.9853937]
[1765555788377,75.0,133.74,133.66,0.71]
[1765555788378,75.0,133.72,133.66,0.71]
[1765555788549,7.5054033,133.69,133.63,8.19322526]
[1765555788977,8.80994492,133.68,133.63,8.19322526]
[1765555789552,91.96534822,133.68,133.61,7.5054033]
[1765555789773,16.31534822,133.64,133.54,37.43926656]
[1765555790084,8.80994492,133.62,133.57,7.48657706]
[1765555790253,23.79927606,133.62,133.56,8.19716908]
[1765555790653,7.5054033,133.61,133.56,8.19716908]
[1765555790853,16.31534822,133.59,133.54,7.48832273]
[1765555791070,83.80994492,133.59,133.53,0.68]
[1765555791366,13.0470912,133.59,133.55,0.28432314]
[1765555791570,13.0470912,133.59,133.54,7.5054033]
[1765555791915,13.0470912,133.61,133.56,7.48726321]
[1765555792083,21.2470912,133.63,133.59,7.48559023]
[1765555792283,21.2470912,133.63,133.57,0.68]
[1765555792284,8.80994492,133.62,133.57,7.48630214]
[1765555792499,8.80994492,133.62,133.57,7.5054033]
[1765555792694,21.85703612,133.6,133.52,0.68]
[1765555792895,21.85703612,133.6,133.48,19.40823195]
[1765555792896,8.80994492,133.54,133.48,19.40823195]
[1765555793118,16.31534822,133.54,133.48,0.68]
[1765555793309,8.80994492,133.54,133.48,8.1854033]
[1765555793498,91.4154033,133.55,133.48,8.1854033]
[1765555793698,91.4154033,133.55,133.48,7.49161201]
[1765555793699,7.5054033,133.53,133.48,7.49161201]
[1765555793889,8.80994492,133.52,133.48,7.49161201]
[1765555794089,13.0470912,133.54,133.49,0.68]
[1765555794390,8.2,133.55,133.49,8.1854033]
[1765555794614,8.2,133.55,133.49,0.68]
[1765555794785,21.2470912,133.58,133.52,7.5054033]
[1765555794988,8.2,133.58,133.52,7.5054033]
[1765555795185,8.2,133.58,133.53,7.5054033]
[1765555795602,8.2,133.58,133.54,8.1854033]
[1765555795784,8.80994492,133.59,133.54,8.1854033]
[1765555795989,8.80994492,133.59,133.54,0.68]
[1765555796287,8.80994492,133.59,133.55,7.48783227]
[1765555796718,21.2470912,133.61,133.56,0.68]
[1765555796910,91.31534822,133.6,133.54,7.488251]
[1765555797089,7.5054033,133.59,133.54,7.488251]
[1765555797290,167.02534822,133.6,133.54,7.488251]
[1765555797498,92.02534822,133.6,133.54,7.488251]
[1765555797811,167.02534822,133.6,133.54,7.488251]
[1765555798027,7.50310188,133.59,133.53,14.99190483]
[1765555798319,107.70822522,133.6,133.54,7.48823362]
[1765555798818,7.50310188,133.59,133.54,7.48823362]
[1765555799113,7.50310188,133.59,133.53,7.48885517]
[1765555799520,193.91769819,133.6,133.54,7.50310188]
[1765555799725,92.00994492,133.6,133.55,7.50310188]
[1765555800022,92.00994492,133.6,133.53,7.48885517]
[1765555800023,7.50310188,133.59,133.53,7.48885517]
[1765555800211,29.3438864,133.57,133.51,7.49007564]
[1765555800414,7.50310188,133.54,133.49,7.49077391]
[1765555800607,75.0,133.56,133.5,14.99360488]
[1765555800802,8.2,133.59,133.54,7.50310188]
[1765555801004,21.85703612,133.61,133.55,0.68]
[1765555801228,82.48350426,133.63,133.55,0.68]
[1765555801442,8.80994492,133.6,133.55,0.68]
[1765555801606,8.80994492,133.57,133.5,39.94418596]
[1765555801927,75.0,133.58,133.52,7.50310188]
[1765555802132,13.0470912,133.59,133.55,7.48783227]
[1765555802312,8.80994492,133.58,133.52,7.64526345]
[1765555802520,8.80994492,133.58,133.54,7.48827012]
[1765555802703,8.80994492,133.6,133.55,7.50310188]
[1765555803206,16.29506274,133.6,133.55,8.18310188]
[1765555803415,16.29506274,133.6,133.5,13.0470912]
[1765555803416,21.85703612,133.58,133.5,13.0470912]
[1765555803622,29.360138,133.58,133.51,26.90720329]
[1765555803832,30.070138,133.58,133.52,7.50310188]
[1765555804038,22.56703612,133.58,133.53,7.50310188]
[1765555804216,30.05344566,133.58,133.52,26.22600054]
[1765555804534,30.05344566,133.58,133.51,0.68]
[1765555804535,75.0,133.57,133.51,0.68]
[1765555804738,16.3130468,133.56,133.5,7.49060182]
[1765555805030,16.3130468,133.56,133.49,8.18]
[1765555805031,8.80994492,133.54,133.49,7.4907982]
[1765555805337,16.3130468,133.52,133.47,7.4918362]
[1765555805651,8.80994492,133.52,133.46,7.49275183]
[1765555805807,8.80994492,133.52,133.47,14.99520447]
[1765555806205,17.0230468,133.52,133.46,0.68]
[1765555806439,8.80994492,133.5,133.43,0.68]
[1765555806646,7.50310188,133.49,133.42,18.73760583]
[1765555806801,8.91,133.49,133.43,7.50310188]
[1765555807035,17.0230468,133.48,133.42,7.50310188]
[1765555807255,17.0230468,133.48,133.41,19.41900032]
[1765555807256,7.50310188,133.47,133.41,19.41900032]
[1765555807440,7.50310188,133.47,133.41,26.9221022]
[1765555807638,8.80994492,133.46,133.41,0.68]
[1765555808048,0.71,133.45,133.41,7.49549583]
[1765555808339,8.80994492,133.44,133.41,7.49549583]
[1765555808557,16.3130468,133.44,133.4,0.2]
[1765555808856,16.3130468,133.44,133.4,7.69618672]
[1765555808857,0.71,133.43,133.4,7.69618672]
[1765555809040,17.0230468,133.44,133.4,0.2]
[1765555809234,7.50310188,133.43,133.4,0.2]
[1765555809442,0.71,133.43,133.4,0.2]
[1765555809639,120.05378139,133.45,133.4,7.69592937]
[1765555809853,0.71,133.44,133.4,7.69592937]
[1765555810068,17.0230468,133.44,133.4,0.2]
[1765555810243,0.71,133.44,133.4,7.69586801]
[1765555811244,8.2,133.45,133.41,0.68]
[1765555811646,8.2,133.45,133.4,26.43649769]
[1765555811647,8.91,133.45,133.4,26.43649769]
[1765555811856,17.0230468,133.44,133.4,0.2]
[1765555812055,16.3130468,133.42,133.4,0.2]
[1765555812254,90.70310188,133.41,133.4,0.2]
[1765555812479,8.91,133.41,133.4,0.2]
[1765555812682,8.2,133.41,133.4,0.2]
[1765555812845,8.91,133.41,133.4,0.2]
[1765555813170,8.2,133.41,133.4,0.2]
[1765555813363,100.2230468,133.41,133.4,0.2]
[1765555814067,92.00994492,133.41,133.4,0.2]
[1765555814254,75.0,133.43,133.4,0.2]
[1765555814456,90.70310188,133.43,133.4,0.2]
[1765555814657,90.69466706,133.43,133.4,0.2]
[1765555814857,8.21310188,133.42,133.4,0.2]
[1765555815079,0.71,133.42,133.4,0.2]
[1765555815282,0.71,133.42,133.37,7.49780452]
[1765555815283,75.0,133.39,133.33,7.50310188]
[1765555815455,7.50310188,133.38,133.32,8.18310188]
[1765555815650,7.50310188,133.38,133.32,0.68]
[1765555816060,90.70310188,133.39,133.33,26.25063661]
[1765555816258,90.69727424,133.39,133.33,33.75373849]
[1765555816459,7.50310188,133.38,133.33,26.25063661]
[1765555816878,8.12310188,133.38,133.33,7.50016785]
[1765555817472,83.2,133.39,133.34,8.18310188]
[1765555817781,83.2,133.39,133.34,0.68]
[1765555818090,90.70310188,133.39,133.34,0.68]
[1765555818582,83.2,133.39,133.35,7.49906261]
[1765555818877,8.2,133.39,133.35,7.49906261]
[1765555819054,82.50310188,133.43,133.37,7.50310188]
[1765555819257,83.2,133.43,133.38,7.50310188]
[1765555819656,98.19772415,133.43,133.38,0.69]
[1765555819874,8.12310188,133.42,133.35,26.93671915]
[1765555820074,82.50310188,133.41,133.35,34.43982103]
[1765555820274,75.0,133.41,133.36,8.19310188]
[1765555820488,90.69462227,133.43,133.37,7.50310188]
[1765555820687,83.2,133.43,133.38,7.49737591]
[1765555820996,98.19773959,133.43,133.38,7.49737591]
[1765555821155,83.2,133.43,133.39,0.69]
[1765555821360,75.0,133.45,133.4,7.50310188]
[1765555821656,82.49346299,133.45,133.4,7.50310188]
[1765555821856,82.49346299,133.45,133.4,8.19310188]
[1765555822307,75.0,133.45,133.4,8.19310188]
[1765555822494,82.49348177,133.45,133.4,8.19310188]
[1765555822692,75.0,133.45,133.41,7.49568997]
[1765555822896,82.49354304,133.45,133.41,7.49568997]
[1765555823305,90.61664492,133.45,133.4,7.49605631]
[1765555823500,165.61664492,133.45,133.4,7.49605631]
[1765555823910,165.61664492,133.45,133.38,8.19310188]
[1765555824215,75.0,133.43,133.38,0.69]
[1765555824391,75.0,133.43,133.36,7.50310188]
[1765555824392,15.72310188,133.42,133.36,7.50310188]
[1765555824597,15.71523655,133.42,133.37,7.4975367]
[1765555825016,7.50310188,133.4,133.34,0.69]
[1765555825206,7.50310188,133.4,133.35,7.49868376]
[1765555825398,75.0,133.39,133.34,8.18944407]
[1765555825603,82.50310188,133.39,133.34,8.18944407]
[1765555825912,8.22,133.38,133.34,8.18944407]
[1765555826422,8.22,133.38,133.36,7.50310188]
[1765555826590,8.22,133.38,133.36,7.4983132]
[1765555827407,0.62,133.37,133.33,7.49979654]
[1765555827715,0.62,133.37,133.32,18.75148215]
[1765555827716,7.50310188,133.36,133.32,7.50055443]
[1765555827920,7.50310188,133.36,133.26,37.51928629]
[1765555827921,82.50310188,133.35,133.3,8.19149515]
[1765555828103,82.50310188,133.35,133.31,7.5011825]
[1765555828300,82.50310188,133.37,133.31,19.44248481]
[1765555828501,75.0,133.37,133.34,7.4995765]
[1765555828712,8.22,133.38,133.34,33.75178943]
[1765555828898,8.22,133.38,133.34,26.93868755]
[1765555829301,8.22,133.38,133.34,7.49962501]
[1765555829693,82.50310188,133.35,133.28,7.50257056]
[1765555829923,82.50310188,133.32,133.28,7.50257056]
[1765555830416,7.50310188,133.31,133.26,8.19373231]
[1765555830627,83.22,133.3,133.25,7.50432362]
[1765555830791,98.22533111,133.3,133.25,7.50432362]
[1765555831123,98.22533111,133.3,133.2,0.2]
[1765555831124,171.85703612,133.21,133.2,0.2]
[1765555831328,180.07703612,133.21,133.2,0.2]
[1765555831507,180.59703612,133.21,133.2,0.2]
[1765555831690,188.100138,133.21,133.2,0.2]
[1765555831889,192.8627837,133.21,133.2,0.2]
[1765555832915,171.85703612,133.21,133.2,0.2]
[1765555833115,75.0,133.21,133.2,20.66325508]
[1765555833313,75.0,133.27,133.23,13.0470912]
[1765555833831,15.7229353,133.29,133.26,12.26574758]
[1765555833832,8.22,133.29,133.26,12.26574758]
[1765555834122,94.26943013,133.34,133.24,0.69]
[1765555834123,75.0,133.33,133.24,0.69]
[1765555834323,75.0,133.29,133.24,13.7370912]
[1765555834727,75.0,133.29,133.25,0.69]
[1765555834928,75.0,133.29,133.25,8.19456568]
[1765555835136,82.50247783,133.29,133.25,13.0470912]
[1765555835303,75.0,133.29,133.25,8.19466161]
[1765555835501,8.80994492,133.28,133.24,19.77088275]
[1765555835915,75.0,133.27,133.23,7.50571533]
[1765555836400,17.02994492,133.26,133.21,12.26574758]
[1765555836705,83.80994492,133.19,133.18,0.1]
[1765555836905,92.02994492,133.19,133.18,0.1]
[1765555837119,167.34994492,133.19,133.18,0.1]
[1765555837301,8.80994492,133.18,133.13,7.51145496]
[1765555837506,75.0,133.17,133.11,8.20248024]
[1765555837836,8.80994492,133.16,133.12,12.26650371]
[1765555838130,8.80994492,133.16,133.11,8.20246694]
[1765555838431,75.0,133.15,133.09,31.04949894]
[1765555838634,8.80994492,133.14,133.08,0.69]
[1765555838930,83.22,133.15,133.1,12.26650371]
[1765555839108,75.0,133.18,133.14,12.26650371]
[1765555839306,75.0,133.18,133.13,12.26650371]
[1765555839519,75.0,133.18,133.1,0.97432314]
[1765555839709,24.53763003,133.2,133.06,7.51528956]
[1765555839710,87.26650371,133.11,133.06,7.51528956]
[1765555839929,95.48650371,133.11,133.06,7.51528956]
[1765555840113,8.80994492,133.1,133.06,7.51528956]
[1765555840618,75.0,133.08,133.04,0.69]
[1765555840822,75.0,133.08,133.04,12.95650371]
[1765555841126,75.0,133.08,133.05,7.5158474]
[1765555841309,75.0,133.08,133.05,20.47235111]
[1765555841512,8.80994492,133.1,133.05,38.5722797]
[1765555841715,8.80994492,133.1,133.06,0.69]
[1765555842110,8.80994492,133.1,133.06,12.95650371]
[1765555842312,75.0,133.09,133.05,26.30577599]
[1765555842515,75.0,133.09,133.05,7.5158474]
[1765555842933,75.0,133.09,133.04,12.26650371]
[1765555843110,75.0,133.09,133.05,12.26650371]
[1765555843317,75.0,133.09,133.04,0.69]
[1765555843516,75.0,133.09,133.04,12.95650371]
[1765555843714,8.80994492,133.08,133.03,26.30985491]
[1765555844211,8.80994492,133.08,133.03,26.99985491]
[1765555844607,83.22,133.07,133.03,7.5171014]
[1765555844906,83.22,133.07,133.02,7.51737071]
[1765555844907,8.80994492,133.06,133.02,7.51737071]
[1765555845131,8.80994492,133.06,133.02,20.47387442]
[1765555845320,8.80994492,133.06,133.02,7.51737071]
[1765555846026,75.0,133.07,133.03,12.26650371]
[1765555846238,75.0,133.07,133.04,12.26650371]
[1765555846440,75.0,133.07,133.03,0.69]
[1765555846632,75.0,133.07,133.03,12.26650371]
[1765555846818,75.0,133.07,133.05,7.51597143]
[1765555847332,75.0,133.09,133.06,12.95650371]
[1765555847529,75.32,133.09,133.04,7.51638367]
[1765555847739,75.0,133.09,133.04,7.51638367]
[1765555847918,75.0,133.07,133.04,19.78288738]
[1765555848436,75.0,133.07,133.05,0.69]
[1765555848638,83.22,133.1,133.04,7.51638367]
[1765555848639,75.0,133.08,133.04,7.51638367]
[1765555848847,91.64520059,133.07,133.0,1.5]
[1765555849149,75.0,133.04,133.0,9.01872395]
[1765555849350,75.0,133.04,133.0,21.28522766]
[1765555849514,75.0,133.04,133.0,21.97522766]
[1765555849714,75.0,133.02,133.0,1.5]
[1765555850047,13.0470912,132.94,132.87,3.50862099]
[1765555850244,96.07644863,132.91,132.87,3.50862099]
[1765555850417,92.02994492,132.91,132.88,7.52554882]
[1765555850832,92.02994492,132.91,132.87,11.03467262]
[1765555851240,8.22,132.92,132.87,11.75467262]
[1765555851523,8.22,132.92,132.89,12.26650371]
[1765555851725,8.22,132.96,132.91,12.26650371]
[1765555851930,8.22,132.96,132.95,12.26650371]
[1765555852131,75.0,132.99,132.9,0.82]
[1765555852330,75.0,132.97,132.9,13.8670912]
[1765555852822,75.0,132.97,132.9,7.62445447]
[1765555852823,8.80994492,132.94,132.9,7.62445447]
[1765555853024,75.0,132.97,132.93,12.26650371]
[1765555853235,8.80994492,132.96,132.91,0.72]
[1765555853432,75.0,132.94,132.9,0.1]
[1765555853663,8.24,132.95,132.91,0.72]
[1765555854028,84.02994492,132.99,132.94,12.26650371]
[1765555854029,75.0,132.98,132.94,12.26650371]
[1765555854233,75.0,132.98,132.96,12.26650371]
[1765555854534,75.0,132.98,132.95,12.26650371]
[1765555854737,75.0,132.98,132.94,0.72]
[1765555854941,75.0,132.98,132.95,12.26650371]
[1765555855148,75.0,132.98,132.96,12.26650371]
[1765555855344,75.0,132.98,132.95,12.26650371]
[1765555855548,75.0,132.98,132.96,12.26650371]
[1765555855854,75.0,132.98,132.95,0.72]
[1765555856031,75.0,132.98,132.95,12.26650371]
[1765555856228,75.0,132.98,132.94,19.78821545]
[1765555856428,75.0,132.96,132.9,27.83106689]
[1765555856773,75.0,132.96,132.92,7.52291203]
[1765555857128,8.80994492,132.95,132.91,19.79034542]
[1765555857349,75.0,132.94,132.9,7.62403992]
[1765555857548,75.0,132.94,132.9,0.1]
[1765555857752,75.0,132.92,132.9,0.1]
[1765555857955,83.24,132.94,132.9,0.82]
[1765555858234,75.0,132.94,132.91,19.79039205]
[1765555858467,75.0,132.94,132.91,7.52388834]
[1765555858632,75.0,132.96,132.93,12.26650371]
[1765555858835,75.0,132.98,132.94,19.78837064]
[1765555859163,75.0,132.98,132.95,12.26650371]
[1765555859329,8.80994492,132.97,132.93,7.52228149]
[1765555859862,75.0,132.94,132.91,8.22]
[1765555860152,75.0,132.94,132.9,12.36650371]
[1765555860353,75.0,132.94,132.9,0.1]
[1765555861027,83.24,132.96,132.91,12.26650371]
[1765555861225,75.0,132.96,132.9,27.15536857]
[1765555861456,75.0,132.96,132.91,0.72]
[1765555861661,75.0,132.96,132.9,26.43536857]
[1765555861662,75.0,132.94,132.9,7.62423238]
[1765555861833,75.0,132.94,132.9,0.1]
[1765555862031,75.0,132.91,132.9,0.1]
[1765555862242,75.0,132.93,132.9,13.08650371]
[1765555862568,75.0,132.93,132.9,0.1]
[1765555862728,75.0,132.91,132.9,0.1]
[1765555863041,209.37033697,132.91,132.9,0.1]
[1765555863261,209.37033697,132.91,132.87,3.50862099]
[1765555863262,158.80994492,132.88,132.87,3.50862099]
[1765555863549,171.07644863,132.88,132.87,3.50862099]
[1765555863742,172.07703612,132.88,132.87,3.50862099]
[1765555863944,206.93353983,132.88,132.87,1e-08]
[1765555864159,194.66703612,132.88,132.87,1e-08]
[1765555864358,206.93353983,132.88,132.87,1e-08]
[1765555864558,96.85703612,132.88,132.87,1e-08]
[1765555864856,75.0,132.88,132.87,1e-08]
[1765555865027,36.84033697,132.91,132.87,12.98650372]
[1765555865028,75.0,132.9,132.87,12.98650372]
[1765555865459,75.0,132.88,132.87,1e-08]
[1765555868366,91.55553191,132.88,132.87,1e-08]
[1765555868530,200.10912682,132.88,132.87,1e-08]
[1765555868936,222.98344996,132.88,132.87,1e-08]
[1765555869339,209.93635876,132.88,132.87,1e-08]
[1765555869545,209.93635876,132.88,132.76,7.53199438]
[1765555869546,75.0,132.8,132.76,7.53199438]
[1765555869843,83.24,132.8,132.76,0.72]
[1765555870241,83.24,132.8,132.74,7.53311964]
[1765555870242,75.0,132.77,132.74,7.53311964]
[1765555870442,75.0,132.77,132.73,8.87344917]
[1765555870658,75.0,132.77,132.74,0.72]
[1765555870867,75.0,132.77,132.75,12.26650371]
[1765555871064,37.61967286,132.91,132.74,8.25317063]
[1765555871065,75.0,132.81,132.76,19.79889298]
[1765555871236,75.0,132.81,132.77,0.72]
[1765555871438,83.24,132.83,132.79,12.26650371]
[1765555871764,75.0,132.85,132.82,12.26650371]
[1765555872270,75.0,132.85,132.83,0.72]
[1765555872640,75.0,132.85,132.8,0.72]
[1765555873037,97.59,132.83,132.79,12.26650371]
[1765555873242,75.0,132.83,132.79,0.72]
[1765555873465,83.24,132.83,132.8,12.98650371]
[1765555873967,83.24,132.83,132.75,20.48650371]
[1765555873968,8.24,132.83,132.82,12.26650371]
[1765555874145,8.80994492,132.86,132.81,0.72]
[1765555874146,75.0,132.87,132.81,0.72]
[1765555874339,83.24,132.87,132.83,12.26650371]
[1765555874757,83.24,132.87,132.85,12.26650371]
[1765555874971,83.24,132.87,132.81,12.26650371]
[1765555874972,75.0,132.85,132.81,12.26650371]
[1765555875158,75.0,132.85,132.81,0.72]
[1765555875352,8.80994492,132.84,132.76,18.83057605]
[1765555875574,75.0,132.83,132.79,12.26650371]
[1765555875954,75.0,132.83,132.8,0.72]